bitfinex/quotes_SOLUSD_20220228
["timestamp","ask_amount","ask_price","bid_price","bid_amount"]
[1646038675279,45.37154468,89.914,89.85,32.7365]
[1646038677280,23.0936,89.917,89.85,32.7365]
[1646038677682,23.0936,89.917,89.85,35.48328921]
[1646038678282,52.42697542,89.916,89.85,35.48328921]
[1646038678480,23.0936,89.917,89.85,35.48328921]
[1646038678880,23.0936,89.917,89.85,32.7365]
[1646038679280,23.0936,89.917,89.85,38.7365]
[1646038679481,23.0936,89.917,89.85,32.7365]
[1646038679781,23.0936,89.917,89.85,38.7365]
[1646038679980,23.0936,89.917,89.85,32.7365]
[1646038680185,23.0936,89.917,89.85,38.7365]
[1646038680382,23.0936,89.917,89.85,32.7365]
[1646038690718,113.28958273,89.916,89.85,32.7365]
[1646038690923,1.70663626,89.915,89.85,32.7365]
[1646038692421,1.70663626,89.915,89.829,14.08347262]
[1646038692422,28.98170854,89.914,89.83,16.04]
[1646038692619,113.29709114,89.913,89.821,24.2135]
[1646038692820,1.53616265,89.912,89.821,24.2135]
[1646038693021,111.7,89.911,89.821,24.2135]
[1646038693221,1.73947228,89.91,89.821,24.2135]
[1646038693525,111.7,89.899,89.821,24.2135]
[1646038693721,1.71100816,89.896,89.821,24.2135]
[1646038694322,2.74678921,89.895,89.815,15.50223047]
[1646038694523,2.74678921,89.895,89.816,6.0]
[1646038695520,111.7,89.887,89.816,6.0]
[1646038695722,1.35027556,89.886,89.816,6.0]
[1646038695922,111.7,89.887,89.816,6.0]
[1646038695923,1.36423925,89.883,89.816,6.0]
[1646038696324,1.36423925,89.883,89.811,6.0]
[1646038697127,1.36423925,89.883,89.812,11.39056127]
[1646038697325,1.36423925,89.883,89.813,6.0]
[1646038699027,16.7072,89.88,89.801,24.5498]
[1646038699226,1.69512077,89.878,89.801,24.5498]
[1646038699631,2.74678921,89.877,89.801,24.5498]
[1646038699830,2.74678921,89.877,89.802,15.01899481]
[1646038700433,111.7,89.869,89.784,4.452]
[1646038700631,111.7,89.869,89.77,16.7104]
[1646038700632,1.69515321,89.868,89.771,22.9619]
[1646038701234,2.74678921,89.867,89.771,22.9619]
[1646038701432,1.5344167,89.864,89.772,13.84567431]
[1646038702031,2.74678921,89.863,89.772,13.84567431]
[1646038702534,111.7,89.859,89.772,13.84567431]
[1646038702732,16.7114,89.86,89.772,13.84567431]
[1646038702733,111.7,89.857,89.772,13.84567431]
[1646038702935,1.50557906,89.856,89.772,13.84567431]
[1646038704135,1.50557906,89.856,89.77,32.7504]
[1646038704335,1.50557906,89.856,89.764,11.63507386]
[1646038704336,111.7,89.849,89.764,11.63507386]
[1646038704535,1.5117753,89.846,89.75,16.7137]
[1646038704736,1.58144434,89.843,89.75,16.7137]
[1646038705134,2.74008921,89.842,89.75,16.7137]
[1646038705338,2.74008921,89.842,89.751,15.87528173]
[1646038705536,1.76758909,89.838,89.751,15.87528173]
[1646038706443,1.76758909,89.838,89.76,16.7128]
[1646038706837,113.48843339,89.844,89.76,32.7528]
[1646038707038,1.4414392,89.843,89.76,32.7528]
[1646038708036,1.4414392,89.843,89.761,6.0]
[1646038708238,1.4414392,89.843,89.76,32.7528]
[1646038710041,1.4414392,89.843,89.761,24.56909397]
[1646038710443,1.4414392,89.843,89.77,16.7109]
[1646038714647,24.4959,89.845,89.77,32.7509]
[1646038714846,24.4959,89.845,89.771,6.0]
[1646038715046,24.4959,89.845,89.78,16.7083]
[1646038717671,24.4959,89.845,89.77,16.04]
[1646038718073,1.4504144,89.843,89.77,16.04]
[1646038718273,1.4504144,89.843,89.752,45.3815]
[1646038718676,1.4504144,89.843,89.753,24.60376455]
[1646038719277,111.7,89.839,89.76,16.7126]
[1646038719478,1.84905734,89.838,89.76,16.7126]
[1646038720277,2.74008921,89.837,89.752,45.3815]
[1646038720476,113.34622064,89.835,89.752,45.3815]
[1646038720676,111.7,89.829,89.752,45.3815]
[1646038720880,1.76394055,89.828,89.752,45.3815]
[1646038721277,1.3742506,89.825,89.752,45.3815]
[1646038721677,1.59323041,89.822,89.745,11.52662513]
[1646038722276,1.59323041,89.822,89.742,4.454]
[1646038722478,1.5274313,89.818,89.742,4.454]
[1646038724984,24.8887,89.824,89.742,4.454]
[1646038724985,1.43370472,89.808,89.742,4.454]
[1646038725181,1.71772754,89.805,89.742,4.454]
[1646038726181,171.99021128,89.798,89.742,4.454]
[1646038726382,1.86153348,89.797,89.743,6.0]
[1646038727683,1.8242268,89.797,89.743,6.0]
[1646038729686,1.8242268,89.797,89.742,4.454]
[1646038729687,1.8242268,89.797,89.711,24.2038]
[1646038729884,1.53359334,89.794,89.711,24.2038]
[1646038730985,1.53359334,89.794,89.712,11.87536945]
[1646038732487,1.53359334,89.794,89.72,16.7201]
[1646038734892,1.53359334,89.794,89.712,11.87536945]
[1646038738796,1.53359334,89.794,89.713,8.74678921]
[1646038739194,1.53359334,89.794,89.72,16.7201]
[1646038739493,46.4523,89.796,89.73,16.04]
[1646038740495,46.4523,89.796,89.73,32.7581]
[1646038740696,1.69012402,89.818,89.731,2.74678921]
[1646038740897,23.9293,89.828,89.732,29.3929]
[1646038741096,23.9293,89.828,89.733,2.63903701]
[1646038741296,23.9293,89.828,89.734,6.0]
[1646038741696,23.9293,89.828,89.734,8.74678921]
[1646038741896,45.23014829,89.827,89.735,2.74678921]
[1646038742097,45.23014829,89.827,89.736,6.0]
[1646038742298,45.23014829,89.827,89.75,16.04]
[1646038742497,1.77678694,89.838,89.75,16.04]
[1646038742498,1.44446943,89.873,89.751,73.80654734]
[1646038742700,111.7,89.868,89.752,32.92014276]
[1646038742897,25.47776943,89.873,89.753,69.73822966]
[1646038743118,25.47776943,89.873,89.757,67.03]
[1646038743119,24.0333,89.873,89.757,67.03]
[1646038743297,24.0333,89.873,89.77,16.04]
[1646038743496,58.90076569,89.872,89.771,27.4136567]
[1646038743697,58.90076569,89.872,89.772,8.65029601]
[1646038743898,58.90076569,89.872,89.772,11.39708522]
[1646038744097,58.90076569,89.872,89.772,8.65029601]
[1646038744298,58.90076569,89.872,89.773,2.74678921]
[1646038744599,58.90076569,89.872,89.781,14.39837176]
[1646038744798,58.90076569,89.872,89.79,16.04]
[1646038745000,58.90076569,89.872,89.791,6.0]
[1646038745798,58.90076569,89.872,89.8,16.7051]
[1646038745999,58.90076569,89.872,89.81,16.04]
[1646038746197,58.90076569,89.872,89.811,10.05884833]
[1646038749702,135.1627,89.898,89.811,10.05884833]
[1646038749902,1.84837553,89.897,89.82,16.7015]
[1646038750102,23.4627,89.898,89.821,6.0]
[1646038750906,47.37731306,89.897,89.821,6.0]
[1646038755909,47.37731306,89.897,89.811,23.40213404]
[1646038755910,113.26250636,89.896,89.811,4.05884833]
[1646038756110,1.46743196,89.895,89.791,24.6581]
[1646038756509,111.7,89.894,89.791,24.6581]
[1646038756709,1.45672022,89.893,89.791,24.6581]
[1646038756910,111.7,89.892,89.791,24.6581]
[1646038757110,1.56400742,89.891,89.792,13.22364192]
[1646038757510,113.42261253,89.889,89.792,13.22364192]
[1646038757709,111.7,89.889,89.792,13.22364192]
[1646038757909,1.6781693,89.888,89.792,13.22364192]
[1646038758726,1.59635084,89.885,89.792,13.22364192]
[1646038759623,111.7,89.879,89.792,13.22364192]
[1646038759824,1.70162505,89.878,89.792,13.22364192]
[1646038763630,1.70162505,89.878,89.791,24.6581]
[1646038765628,56.76533243,89.869,89.791,24.6581]
[1646038765829,23.4003,89.868,89.791,24.6581]
[1646038766031,135.1003,89.868,89.791,24.6581]
[1646038766229,23.4003,89.868,89.791,24.6581]
[1646038766631,1.55434816,89.867,89.791,24.6581]
[1646038768132,23.4003,89.868,89.8,16.7054]
[1646038768536,23.4003,89.868,89.8,32.7454]
[1646038769534,55.15336513,89.869,89.8,32.7454]
[1646038769734,55.15336513,89.869,89.801,8.84920039]
[1646038770336,55.15336513,89.869,89.801,17.47920039]
[1646038770537,55.15336513,89.869,89.801,21.93120039]
[1646038770839,55.15336513,89.869,89.81,16.7035]
[1646038771041,1.61717173,89.868,89.81,32.7435]
[1646038771235,1.61717173,89.868,89.81,16.04]
[1646038773838,55.15336513,89.869,89.81,32.7435]
[1646038774239,24.281,89.877,89.81,32.7435]
[1646038774436,24.281,89.877,89.811,6.0]
[1646038775037,1.53834832,89.876,89.811,6.0]
[1646038775237,53.2884839,89.876,89.811,6.0]
[1646038775437,1.43214766,89.875,89.811,6.0]
[1646038776537,1.75625261,89.874,89.791,24.6581]
[1646038777945,16.7093,89.87,89.791,24.6581]
[1646038778139,16.7093,89.87,89.791,39.53472732]
[1646038778337,1.77112277,89.869,89.791,39.53472732]
[1646038778538,1.38659258,89.875,89.791,39.53472732]
[1646038780842,113.08659258,89.875,89.791,39.53472732]
[1646038781048,113.12784247,89.869,89.791,39.53472732]
[1646038781249,1.75830146,89.868,89.791,39.53472732]
[1646038781445,1.75830146,89.868,89.791,24.6581]
[1646038782348,111.7,89.859,89.79,16.04]
[1646038782549,1.44503949,89.858,89.784,4.452]
[1646038785655,1.44875492,89.848,89.751,67.7801]
[1646038785853,111.7,89.839,89.72,112.6]
[1646038786052,2.74008921,89.857,89.721,49.9605]
[1646038786053,111.7,89.837,89.721,49.9605]
[1646038786254,47.69063536,89.838,89.721,49.9605]
[1646038786255,111.7,89.835,89.721,49.9605]
[1646038786457,111.7,89.833,89.722,15.16213853]
[1646038786653,111.7,89.831,89.722,15.16213853]
[1646038786853,111.7,89.829,89.722,15.16213853]
[1646038787058,111.7,89.827,89.722,15.16213853]
[1646038787255,111.7,89.827,89.721,49.9605]
[1646038787256,6.04413654,89.826,89.721,49.9605]
[1646038787458,1.66890917,89.818,89.721,49.9605]
[1646038787658,4.455,89.817,89.721,49.9605]
[1646038787856,111.7,89.816,89.721,49.9605]
[1646038788059,4.455,89.815,89.721,49.9605]
[1646038788258,162.87377786,89.814,89.721,49.9605]
[1646038788457,111.7,89.812,89.721,49.9605]
[1646038788661,111.7,89.81,89.721,49.9605]
[1646038788861,111.7,89.808,89.721,49.9605]
[1646038789062,111.7,89.799,89.721,49.9605]
[1646038789261,187.82187308,89.798,89.721,49.9605]
[1646038789461,1.46338382,89.797,89.721,49.9605]
[1646038794268,1.8621404,89.788,89.702,26.42504603]
[1646038794465,16.7238,89.79,89.691,47.45029631]
[1646038794466,111.7,89.786,89.703,30.5908]
[1646038794665,1.72048114,89.785,89.703,30.5908]
[1646038794865,1.83670041,89.782,89.703,30.5908]
[1646038799272,1.83670041,89.782,89.704,19.63196443]
[1646038799486,1.83670041,89.782,89.705,6.0]
[1646038800386,51.59324776,89.784,89.705,6.0]
[1646038800586,1.35256766,89.783,89.706,26.42504603]
[1646038800786,51.59324776,89.784,89.706,26.42504603]
[1646038801086,51.59324776,89.784,89.707,6.0]
[1646038801286,51.59324776,89.784,89.71,16.7222]
[1646038801489,51.59324776,89.784,89.711,9.05184896]
[1646038801686,51.59324776,89.784,89.711,35.47689499]
[1646038801889,51.59324776,89.784,89.712,9.58282121]
[1646038802087,51.59324776,89.784,89.713,8.95336059]
[1646038802288,51.59324776,89.784,89.714,2.33309939]
[1646038802487,1.69182793,89.818,89.721,2.28566201]
[1646038802692,47.9087,89.838,89.73,16.04]
[1646038802887,1.67538163,89.837,89.731,13.36684924]
[1646038803087,1.67538163,89.837,89.731,16.11363845]
[1646038803286,47.9087,89.838,89.731,16.11363845]
[1646038803287,47.9087,89.838,89.731,83.14363845]
[1646038803487,51.94401546,89.836,89.732,6.27690171]
[1646038803687,51.94401546,89.836,89.751,21.42701306]
[1646038803890,51.94401546,89.836,89.76,16.04]
[1646038804190,51.94401546,89.836,89.761,8.50930375]
[1646038804393,1.53475634,89.868,89.762,4.454]
[1646038804590,4.454,89.878,89.762,4.454]
[1646038804591,45.6128,89.877,89.764,178.73]
[1646038804791,45.6128,89.877,89.78,16.7092]
[1646038804990,45.6128,89.877,89.79,16.04]
[1646038805189,45.6128,89.877,89.791,12.80799]
[1646038805392,53.04612399,89.876,89.792,1.79160487]
[1646038805592,53.04612399,89.876,89.793,12.97312946]
[1646038805792,53.04612399,89.876,89.811,15.47082262]
[1646038806092,153.521,89.93,89.812,8.37350206]
[1646038806093,4.415,89.91,89.812,8.37350206]
[1646038806293,48.1996,89.918,89.812,8.37350206]
[1646038806294,1.73375671,89.917,89.813,4.45]
[1646038806493,1.73375671,89.917,89.814,6.0]
[1646038806793,1.73375671,89.917,89.815,4.45]
[1646038806999,51.67020217,89.916,89.816,6.0]
[1646038807294,51.67020217,89.916,89.821,2.99407096]
[1646038807493,74.49084888,89.916,89.83,16.6989]
[1646038807694,74.49084888,89.916,89.831,4.91539516]
[1646038808697,1.51246422,89.914,89.831,4.91539516]
[1646038809096,24.33311093,89.914,89.831,4.91539516]
[1646038809296,1.78782771,89.913,89.831,4.91539516]
[1646038810502,113.48782771,89.913,89.83,32.7389]
[1646038810698,111.7,89.909,89.818,24.2591]
[1646038810901,4.45,89.908,89.807,2.74678921]
[1646038811200,111.7,89.907,89.808,6.0]
[1646038811398,111.7,89.905,89.803,6.0]
[1646038811602,111.7,89.903,89.804,17.44725442]
[1646038811798,111.7,89.889,89.805,6.0]
[1646038812001,111.7,89.887,89.802,24.5684]
[1646038812202,111.7,89.885,89.8,16.04]
[1646038812398,111.7,89.883,89.8,16.04]
[1646038812603,111.7,89.881,89.8,16.04]
[1646038812799,111.7,89.879,89.8,16.04]
[1646038813000,1.5672445,89.878,89.78,16.04]
[1646038813200,113.31691468,89.876,89.78,16.04]
[1646038813399,5.74145334,89.875,89.78,16.04]
[1646038813700,111.7,89.874,89.781,2.74678921]
[1646038813902,111.7,89.872,89.78,16.04]
[1646038814107,113.31732932,89.869,89.78,32.7495]
[1646038814303,111.7,89.867,89.78,32.7495]
[1646038814604,5.66333376,89.868,89.78,32.7495]
[1646038814605,1.37975729,89.864,89.78,16.04]
[1646038814801,4.237,89.863,89.78,16.04]
[1646038815001,111.7,89.859,89.746,2.74678921]
[1646038815202,4.22,89.858,89.75,16.04]
[1646038815502,1.56542328,89.856,89.751,6.0]
[1646038815700,4.362,89.855,89.751,6.0]
[1646038815901,4.362,89.855,89.748,6.0]
[1646038816202,2.74678921,89.855,89.748,6.0]
[1646038816501,1.38936588,89.852,89.75,16.04]
[1646038816703,4.454,89.851,89.751,6.0]
[1646038817104,111.7,89.849,89.751,6.0]
[1646038817402,1.72671309,89.846,89.751,6.0]
[1646038817604,1.64968917,89.838,89.751,6.0]
[1646038817803,111.7,89.837,89.751,6.0]
[1646038818005,1.74745838,89.836,89.751,6.0]
[1646038819509,1.74745838,89.836,89.75,32.7549]
[1646038819711,113.26222726,89.829,89.75,16.04]
[1646038819911,1.67418465,89.828,89.73,62.8223]
[1646038820312,2.74678921,89.827,89.73,62.8223]
[1646038820513,111.7,89.825,89.73,62.8223]
[1646038820713,1.7907521,89.824,89.73,62.8223]
[1646038821516,111.7,89.819,89.73,79.5401]
[1646038821712,1.41069374,89.818,89.73,79.5401]
[1646038822513,1.41069374,89.818,89.73,103.13329631]
[1646038822713,1.38092437,89.825,89.731,10.455]
[1646038822917,1.38092437,89.825,89.74,16.7157]
[1646038823113,1.38092437,89.825,89.741,0.66524358]
[1646038823314,4.12771358,89.825,89.741,0.66524358]
[1646038823515,115.82771358,89.825,89.741,0.66524358]
[1646038823717,2.74678921,89.84,89.741,0.66524358]
[1646038823916,1.77871618,89.83,89.75,16.7148]
[1646038824216,2.74008921,89.84,89.75,16.7148]
[1646038824417,1.55021942,89.83,89.75,16.7148]
[1646038824618,2.74008921,89.84,89.76,16.04]
[1646038824820,1.86127707,89.839,89.76,16.04]
[1646038825019,116.133,89.848,89.76,16.04]
[1646038825218,1.62746376,89.824,89.75,16.7148]
[1646038825419,1.62746376,89.824,89.73,62.8223]
[1646038825644,2.74678921,89.823,89.73,62.8223]
[1646038825950,4.365,89.822,89.73,16.04]
[1646038826549,2.74678921,89.821,89.73,16.04]
[1646038826745,4.319,89.82,89.73,16.04]
[1646038827044,2.74008921,89.819,89.73,16.04]
[1646038827245,16.7213,89.81,89.73,16.04]
[1646038827450,111.7,89.807,89.73,16.04]
[1646038827645,1.8457229,89.806,89.73,16.04]
[1646038827847,4.58581211,89.806,89.71,32.7617]
[1646038828248,2.74678921,89.805,89.71,32.7617]
[1646038829254,111.7,89.799,89.709,112.6]
[1646038829447,111.7,89.797,89.709,112.6]
[1646038829648,1.80116685,89.794,89.709,112.6]
[1646038829852,4.456,89.793,89.709,112.6]
[1646038830248,111.7,89.791,89.709,112.6]
[1646038830446,54.17477958,89.792,89.709,112.6]
[1646038830447,16.7262,89.78,89.709,112.6]
[1646038830654,113.48211445,89.779,89.709,112.6]
[1646038830847,111.7,89.777,89.709,112.6]
[1646038831047,1.73751428,89.776,89.709,112.6]
[1646038831250,53.75047225,89.778,89.71,16.04]
[1646038831448,51.00368304,89.778,89.72,16.7195]
[1646038831649,51.00368304,89.778,89.72,32.7595]
[1646038831947,51.00368304,89.778,89.72,16.04]
[1646038832148,4.24247371,89.777,89.7,16.04]
[1646038832349,51.00368304,89.778,89.7,16.04]
[1646038832749,51.00368304,89.778,89.701,16.83484827]
[1646038832949,1.7175805,89.777,89.7,16.04]
[1646038833150,116.15766971,89.777,89.7,16.04]
[1646038833350,116.15766971,89.777,89.7,32.763]
[1646038833553,4.19842027,89.776,89.7,32.763]
[1646038833749,1.45163106,89.776,89.7,32.763]
[1646038833950,51.00368304,89.778,89.701,14.44576182]
[1646038834151,51.00368304,89.778,89.702,4.457]
[1646038834751,51.00368304,89.778,89.71,16.7224]
[1646038834951,51.00368304,89.778,89.711,6.0]
[1646038835555,51.00368304,89.778,89.71,16.04]
[1646038835754,51.00368304,89.778,89.72,16.7198]
[1646038837354,51.00368304,89.778,89.721,18.38732577]
[1646038837957,51.00368304,89.778,89.72,16.7198]
[1646038838557,1.507481,89.777,89.71,16.04]
[1646038838957,51.00368304,89.778,89.71,16.04]
[1646038839360,162.70368304,89.778,89.71,16.04]
[1646038839556,1.53847294,89.777,89.71,16.04]
[1646038841158,1.53847294,89.777,89.702,4.457]
[1646038841159,2.74678921,89.776,89.702,4.457]
[1646038841364,1.65169954,89.774,89.702,4.457]
[1646038841560,4.457,89.773,89.702,4.457]
[1646038842460,111.7,89.769,89.702,4.457]
[1646038842662,1.65385188,89.768,89.68,32.7681]
[1646038842863,111.7,89.766,89.68,32.7681]
[1646038843067,1.72001638,89.765,89.68,32.7681]
[1646038843262,1.72001638,89.765,89.68,16.04]
[1646038843465,111.7,89.763,89.68,16.04]
[1646038843761,18.42033133,89.76,89.68,18.57062333]
[1646038843963,1.83780184,89.758,89.68,16.04]
[1646038845467,1.73723194,89.755,89.68,16.04]
[1646038845662,16.7313,89.75,89.68,16.04]
[1646038845966,1.73324434,89.748,89.67,112.6]
[1646038846162,1.73324434,89.748,89.65,16.4754]
[1646038846363,111.7,89.746,89.65,32.5154]
[1646038846564,111.7,89.744,89.65,32.5154]
[1646038846763,1.49743069,89.743,89.65,16.04]
[1646038847564,111.7,89.739,89.65,32.7731]
[1646038847765,1.80388217,89.738,89.65,32.7731]
[1646038847966,111.7,89.736,89.65,32.7731]
[1646038848164,1.66892429,89.735,89.65,32.7731]
[1646038848363,4.458,89.734,89.65,32.7731]
[1646038848567,111.7,89.729,89.65,16.04]
[1646038848763,1.86675178,89.728,89.65,16.04]
[1646038848964,111.7,89.727,89.65,16.04]
[1646038849164,1.35962816,89.726,89.65,16.04]
[1646038850466,16.7369,89.72,89.65,16.04]
[1646038850665,113.5574517,89.719,89.651,2.6354192]
[1646038850870,1.86590018,89.718,89.65,16.04]
[1646038851867,1.86590018,89.718,89.651,14.89872336]
[1646038852466,47.49027708,89.727,89.652,8.74678921]
[1646038852868,47.49027708,89.727,89.653,2.74678921]
[1646038853069,47.49027708,89.727,89.654,6.0]
[1646038853566,47.49027708,89.727,89.655,2.74678921]
[1646038853765,47.49027708,89.727,89.67,16.04]
[1646038855368,47.49027708,89.727,89.67,16.62598168]
[1646038855767,47.49027708,89.727,89.67,16.04]
[1646038856467,47.49027708,89.727,89.67,32.7704]
[1646038856669,47.49027708,89.727,89.671,19.82702443]
[1646038857470,47.49027708,89.727,89.67,32.7704]
[1646038860473,111.7,89.726,89.643,22.7838]
[1646038860673,1.41898481,89.723,89.64,16.04]
[1646038860871,4.23,89.722,89.64,16.04]
[1646038861472,111.7,89.719,89.641,15.79611379]
[1646038861673,1.47970709,89.718,89.641,15.79611379]
[1646038862677,1.47970709,89.718,89.64,16.04]
[1646038863679,51.15812791,89.708,89.64,35.39357074]
[1646038863880,49.34461295,89.708,89.64,16.04]
[1646038864679,49.34461295,89.708,89.63,16.7377]
[1646038864879,49.34461295,89.708,89.631,15.88553288]
[1646038865081,49.34461295,89.708,89.631,18.63232209]
[1646038865281,49.34461295,89.708,89.632,2.74678921]
[1646038865482,49.34461295,89.708,89.64,16.7359]
[1646038865684,49.34461295,89.708,89.64,32.7759]
[1646038865887,49.34461295,89.708,89.641,5.04578787]
[1646038866685,49.34461295,89.708,89.65,16.734]
[1646038866897,49.34461295,89.708,89.651,4.5006849]
[1646038867299,22.5912,89.728,89.651,4.5006849]
[1646038867500,22.5912,89.728,89.652,8.74678921]
[1646038867699,22.5912,89.728,89.653,4.458]
[1646038867899,22.5912,89.728,89.653,7.20478921]
[1646038868098,22.5912,89.728,89.653,4.458]
[1646038868299,45.29698808,89.727,89.652,4.458]
[1646038868501,45.29698808,89.727,89.66,16.7322]
[1646038868700,45.29698808,89.727,89.67,16.04]
[1646038868900,45.29698808,89.727,89.671,15.88553288]
[1646038869101,1.49032366,89.755,89.671,15.88553288]
[1646038869303,1.49032366,89.755,89.672,6.0]
[1646038869503,1.49032366,89.755,89.673,4.458]
[1646038869702,1.49032366,89.755,89.674,6.0]
[1646038869902,1.49032366,89.755,89.68,16.7288]
[1646038870104,48.94898917,89.754,89.69,16.04]
[1646038871505,48.94898917,89.754,89.69,32.7663]
[1646038872404,23.5297,89.763,89.69,32.7663]
[1646038872605,24.1782,89.77,89.691,11.09482879]
[1646038872804,24.1782,89.77,89.71,16.7223]
[1646038873003,2.74678921,89.791,89.71,32.7623]
[1646038873404,48.0297823,89.79,89.711,5.59007647]
[1646038873608,1.69957986,89.788,89.711,5.59007647]
[1646038874404,138.81228921,89.789,89.72,16.721]
[1646038875405,138.81228921,89.789,89.72,32.761]
[1646038875805,138.81228921,89.789,89.72,16.721]
[1646038876006,27.11228921,89.789,89.72,16.721]
[1646038876406,24.3722,89.789,89.72,16.721]
[1646038876605,24.3722,89.789,89.72,32.761]
[1646038877107,0.47619048,104.14,89.72,32.761]
[1646038877306,1.64654962,89.811,89.721,67.03]
[1646038877507,1.35934586,89.838,89.723,2.79519955]
[1646038877708,48.9189,89.839,89.75,16.7124]
[1646038877907,48.9189,89.839,89.723,2.79519955]
[1646038877908,48.9189,89.839,89.76,16.04]
[1646038878205,1.50131048,89.844,89.751,9.00740692]
[1646038878206,50.93695338,89.838,89.77,16.04]
[1646038878408,50.93695338,89.838,89.771,6.0]
[1646038878808,50.93695338,89.838,89.78,16.7092]
[1646038879007,50.93695338,89.838,89.781,5.59007647]
[1646038880007,47.7822,89.858,89.781,5.59007647]
[1646038880209,47.7822,89.858,89.79,16.708]
[1646038880407,47.7822,89.858,89.79,32.748]
[1646038880611,47.7822,89.858,89.791,2.39171326]
[1646038880807,24.99684671,89.877,89.791,2.39171326]
[1646038881006,45.09409707,89.876,89.791,2.39171326]
[1646038881210,45.09409707,89.876,89.792,6.0]
[1646038881412,45.09409707,89.876,89.793,6.0]
[1646038881608,111.7,89.875,89.792,6.0]
[1646038881810,1.44285317,89.874,89.79,25.08]
[1646038882008,111.7,89.873,89.79,25.08]
[1646038882208,1.83588255,89.872,89.79,25.08]
[1646038882511,1.83588255,89.872,89.8,16.7058]
[1646038882709,45.09409707,89.876,89.801,14.79614131]
[1646038882908,45.09409707,89.876,89.802,8.8720132]
[1646038883309,45.09409707,89.876,89.803,2.74678921]
[1646038883509,45.09409707,89.876,89.804,6.0]
[1646038883709,45.09409707,89.876,89.81,16.7031]
[1646038884112,45.09409707,89.876,89.821,5.59007647]
[1646038884511,45.09409707,89.876,89.82,16.04]
[1646038885211,49.1776,89.888,89.82,32.7426]
[1646038886014,1.84466334,89.908,89.821,6.0]
[1646038886215,57.63205491,89.907,89.822,17.5878395]
[1646038886418,1.6841834,89.906,89.823,6.0]
[1646038886616,1.6841834,89.906,89.822,17.5878395]
[1646038886815,113.31788114,89.904,89.822,17.5878395]
[1646038887115,1.7001394,89.903,89.822,17.5878395]
[1646038887522,1.7001394,89.903,89.83,16.7002]
[1646038887718,1.7001394,89.903,89.83,32.7402]
[1646038889822,1.7001394,89.903,89.83,16.04]
[1646038890021,4.433,89.902,89.83,16.04]
[1646038890221,31.75529073,89.902,89.81,16.7033]
[1646038890421,137.7457756,89.901,89.81,32.7433]
[1646038890721,111.7,89.899,89.811,16.00967092]
[1646038891021,1.5643946,89.896,89.811,16.00967092]
[1646038891227,4.378,89.895,89.811,16.00967092]
[1646038891529,4.36,89.906,89.821,67.03]
[1646038891722,23.2639,89.917,89.83,16.04]
[1646038891922,23.2639,89.917,89.831,13.03749351]
[1646038892521,23.2639,89.917,89.832,2.74678921]
[1646038892724,23.2639,89.917,89.833,6.0]
[1646038893320,59.29969368,89.916,89.833,6.0]
[1646038893520,59.29969368,89.916,89.84,16.6963]
[1646038893727,59.29969368,89.916,89.85,16.04]
[1646038893924,59.29969368,89.916,89.851,16.00967092]
[1646038897226,1.35742542,89.915,89.85,32.7367]
[1646038898228,59.29969368,89.916,89.85,32.7367]
[1646038898229,59.29969368,89.916,89.851,16.41631295]
[1646038899229,59.29969368,89.916,89.852,6.0]
[1646038899430,59.29969368,89.916,89.851,16.41631295]
[1646038900030,59.29969368,89.916,89.86,16.6949]
[1646038900233,59.29969368,89.916,89.86,32.7349]
[1646038901534,22.7674,89.937,89.86,32.7349]
[1646038901535,22.7674,89.937,89.861,3.00300645]
[1646038901732,22.7674,89.937,89.88,16.6895]
[1646038901934,22.7674,89.937,89.88,32.7295]
[1646038902134,4.448,89.965,89.882,67.03]
[1646038902336,1.55510998,89.985,89.883,33.2126747]
[1646038902536,60.61289878,89.984,89.884,6.40799981]
[1646038902733,1.66247066,89.983,89.885,6.0]